[Event "Early-Titled-Tuesday-Blitz-June-18-2024"]
[Site "Chess.com"]
[Date "2024.06.18"]
[Round "10"]
[White "JAN2404"]
[Black "Matols"]
[Result "1-0"]
[WhiteElo "2072"]
[BlackElo "2342"]
[TimeControl "180+1"]
[EndTime "9:57:32 PDT"]
[Termination "JAN2404 won by resignation"]

1. e4 {[%clk 0:03:00.9]} 1... c6 {[%clk 0:03:00.2]} 2. d4 {[%clk 0:02:58.1]}
2... d5 {[%clk 0:03:00.7]} 3. e5 {[%clk 0:02:58.4]} 3... c5 {[%clk 0:03:00.5]}
4. c3 {[%clk 0:02:57.1]} 4... Nc6 {[%clk 0:02:59.3]} 5. Nf3 {[%clk 0:02:56.9]}
5... Bg4 {[%clk 0:02:58]} 6. Be3 {[%clk 0:02:56.7]} 6... e6 {[%clk 0:02:57.4]}
7. Be2 {[%clk 0:02:53.2]} 7... cxd4 {[%clk 0:02:51]} 8. cxd4 {[%clk 0:02:51]}
8... Nge7 {[%clk 0:02:45.6]} 9. O-O {[%clk 0:02:45.3]} 9... Nf5 {[%clk
0:02:45.3]} 10. Nc3 {[%clk 0:02:39.6]} 10... Be7 {[%clk 0:02:41.5]} 11. a3
{[%clk 0:02:33.9]} 11... Rc8 {[%clk 0:02:37.9]} 12. Rc1 {[%clk 0:02:28.7]} 12...
O-O {[%clk 0:02:34.7]} 13. h3 {[%clk 0:02:27.1]} 13... Bxf3 {[%clk 0:02:33.3]}
14. Bxf3 {[%clk 0:02:27.7]} 14... Nxe5 {[%clk 0:02:09.4]} 15. dxe5 {[%clk
0:02:21.4]} 15... d4 {[%clk 0:02:09.3]} 16. Bxb7 {[%clk 0:02:18.2]} 16... Rb8
{[%clk 0:02:07.2]} 17. Be4 {[%clk 0:02:01.3]} 17... Nxe3 {[%clk 0:01:51.3]} 18.
fxe3 {[%clk 0:01:43.3]} 18... dxc3 {[%clk 0:01:51]} 19. b4 {[%clk 0:01:01.5]}
19... Qc7 {[%clk 0:01:33.4]} 20. Qd3 {[%clk 0:00:56]} 20... Qxe5 {[%clk
0:01:26.7]} 21. Rxc3 {[%clk 0:00:38]} 21... f5 {[%clk 0:01:14.4]} 22. Bf3 {[%clk
0:00:29.2]} 22... Rfd8 {[%clk 0:01:11.8]} 23. Qc2 {[%clk 0:00:21.9]} 23... Bd6
{[%clk 0:01:11.5]} 24. g4 {[%clk 0:00:11.5]} 24... g6 {[%clk 0:00:47.5]} 25. Rd1
{[%clk 0:00:09.3]} 25... f4 {[%clk 0:00:40]} 26. e4 {[%clk 0:00:07.2]} 26... Be7
{[%clk 0:00:31.5]} 27. Rc1 {[%clk 0:00:05.9]} 27... Qd4+ {[%clk 0:00:28.6]} 28.
Kh1 {[%clk 0:00:05.1]} 28... Rd7 {[%clk 0:00:25.9]} 29. Rd1 {[%clk 0:00:04.7]}
29... Rbd8 {[%clk 0:00:10.4]} 30. Rxd4 {[%clk 0:00:04.6]} 30... Rxd4 {[%clk
0:00:11.3]} 31. Rc8 {[%clk 0:00:05]} 31... Bh4 {[%clk 0:00:10.3]} 32. Rxd8+
{[%clk 0:00:05.4]} 32... Rxd8 {[%clk 0:00:10.9]} 33. Qc6 {[%clk 0:00:05.2]}
33... e5 {[%clk 0:00:09.6]} 34. Qe6+ {[%clk 0:00:05.3]} 34... Kf8 {[%clk
0:00:09.4]} 35. Qxe5 {[%clk 0:00:05]} 35... Bg3 {[%clk 0:00:09.5]} 36. Qf6+
{[%clk 0:00:04.6]} 36... Ke8 {[%clk 0:00:08.9]} 37. e5 {[%clk 0:00:05.2]} 37...
Rd2 {[%clk 0:00:08.1]} 38. Bc6+ {[%clk 0:00:05.3]} 1-0

[Event "Early-Titled-Tuesday-Blitz-June-18-2024"]
[Site "Chess.com"]
[Date "2024.06.18"]
[Round "10"]
[White "Prizant_academy"]
[Black "luckyswitchback"]
[Result "1/2-1/2"]
[WhiteElo "2968"]
[BlackElo "2857"]
[TimeControl "180+1"]
[EndTime "9:57:35 PDT"]
[Termination "Game drawn by repetition"]

1. d4 {[%clk 0:03:00.9]} 1... d5 {[%clk 0:03:00.1]} 2. c4 {[%clk 0:03:00.9]}
2... e6 {[%clk 0:02:59.6]} 3. Nf3 {[%clk 0:03:01]} 3... Nf6 {[%clk 0:02:58.8]}
4. Qc2 {[%clk 0:02:57.3]} 4... c6 {[%clk 0:02:49.3]} 5. Nbd2 {[%clk 0:02:56.2]}
5... Nbd7 {[%clk 0:02:44.9]} 6. g3 {[%clk 0:02:56.3]} 6... Bd6 {[%clk
0:02:32.9]} 7. Bg2 {[%clk 0:02:56.7]} 7... O-O {[%clk 0:02:33.5]} 8. O-O {[%clk
0:02:57.4]} 8... e5 {[%clk 0:02:16.1]} 9. cxd5 {[%clk 0:02:54.7]} 9... cxd5
{[%clk 0:02:03.3]} 10. dxe5 {[%clk 0:02:53.9]} 10... Nxe5 {[%clk 0:02:03.9]} 11.
Nxe5 {[%clk 0:02:54.4]} 11... Bxe5 {[%clk 0:02:04.8]} 12. Nf3 {[%clk 0:02:55.1]}
12... Bd6 {[%clk 0:02:02.4]} 13. Rd1 {[%clk 0:02:55.6]} 13... h6 {[%clk
0:02:00.9]} 14. Be3 {[%clk 0:02:51.3]} 14... Re8 {[%clk 0:01:59.2]} 15. Bd4
{[%clk 0:02:41.2]} 15... Ne4 {[%clk 0:01:56.8]} 16. Qb3 {[%clk 0:02:38.2]} 16...
Be6 {[%clk 0:01:24]} 17. Qxb7 {[%clk 0:02:36.7]} 17... Nc5 {[%clk 0:01:23.2]}
18. Qb4 {[%clk 0:02:11.4]} 18... Rb8 {[%clk 0:01:21.2]} 19. Qc3 {[%clk
0:01:54.6]} 19... Ne4 {[%clk 0:01:12.8]} 20. Qd3 {[%clk 0:01:53.6]} 20... Qa5
{[%clk 0:01:08.4]} 21. Nd2 {[%clk 0:01:43.8]} 21... Bf5 {[%clk 0:00:51.8]} 22.
Nxe4 {[%clk 0:01:43.4]} 22... Bxe4 {[%clk 0:00:44.6]} 23. Bxe4 {[%clk
0:01:36.6]} 23... dxe4 {[%clk 0:00:45.5]} 24. Qc3 {[%clk 0:01:28.3]} 24... Bb4
{[%clk 0:00:40.6]} 25. Qe3 {[%clk 0:01:27.5]} 25... a6 {[%clk 0:00:35.7]} 26. a3
{[%clk 0:01:22.1]} 26... Bf8 {[%clk 0:00:33.1]} 27. Rac1 {[%clk 0:01:18.1]}
27... Qh5 {[%clk 0:00:30.3]} 28. b4 {[%clk 0:01:05.2]} 28... Qh3 {[%clk
0:00:28.1]} 29. Bc5 {[%clk 0:01:02.8]} 29... Re5 {[%clk 0:00:20.7]} 30. f4
{[%clk 0:00:34.4]} 30... exf3 {[%clk 0:00:17.5]} 31. Qxf3 {[%clk 0:00:34.8]}
31... Rbe8 {[%clk 0:00:17]} 32. Bxf8 {[%clk 0:00:33.8]} 32... Rxe2 {[%clk
0:00:16.7]} 33. Bc5 {[%clk 0:00:14.6]} 33... Qxh2+ {[%clk 0:00:16.5]} 34. Kf1
{[%clk 0:00:14.9]} 34... R8e6 {[%clk 0:00:12.9]} 35. Bf2 {[%clk 0:00:10.5]}
35... Rxf2+ {[%clk 0:00:11]} 36. Qxf2 {[%clk 0:00:11.4]} 36... Qh1+ {[%clk
0:00:10.2]} 37. Qg1 {[%clk 0:00:10.6]} 37... Qf3+ {[%clk 0:00:10.2]} 38. Qf2
{[%clk 0:00:10.4]} 38... Qh1+ {[%clk 0:00:10.6]} 39. Qg1 {[%clk 0:00:11]} 39...
Qf3+ {[%clk 0:00:07.7]} 40. Qf2 {[%clk 0:00:11]} 40... Qh1+ {[%clk 0:00:08.3]}
1/2-1/2

[Event "Early-Titled-Tuesday-Blitz-June-18-2024"]
[Site "Chess.com"]
[Date "2024.06.18"]
[Round "10"]
[White "bubeliang"]
[Black "Bilan_Danila"]
[Result "1-0"]
[WhiteElo "2781"]
[BlackElo "2579"]
[TimeControl "180+1"]
[EndTime "9:57:35 PDT"]
[Termination "bubeliang won by resignation"]

1. d4 {[%clk 0:02:49.9]} 1... d5 {[%clk 0:02:58.9]} 2. Nc3 {[%clk 0:02:48.8]}
2... Nf6 {[%clk 0:02:58.8]} 3. Bf4 {[%clk 0:02:48.6]} 3... c5 {[%clk 0:02:59.2]}
4. e4 {[%clk 0:02:47.9]} 4... e6 {[%clk 0:02:57.3]} 5. exd5 {[%clk 0:02:17.3]}
5... Nxd5 {[%clk 0:02:48.2]} 6. Nxd5 {[%clk 0:02:16.4]} 6... Qxd5 {[%clk
0:02:48.9]} 7. dxc5 {[%clk 0:02:11.4]} 7... Qxd1+ {[%clk 0:02:34.3]} 8. Rxd1
{[%clk 0:02:12.3]} 8... Bxc5 {[%clk 0:02:34.6]} 9. Nf3 {[%clk 0:02:01.1]} 9...
Nc6 {[%clk 0:02:31.3]} 10. Bb5 {[%clk 0:01:53.9]} 10... Bd7 {[%clk 0:02:25.9]}
11. Bd6 {[%clk 0:01:46]} 11... Bxd6 {[%clk 0:02:10.7]} 12. Rxd6 {[%clk
0:01:46.9]} 12... Ke7 {[%clk 0:02:11.3]} 13. Rd2 {[%clk 0:01:42.1]} 13... Rhd8
{[%clk 0:02:08.9]} 14. Ke2 {[%clk 0:01:39.1]} 14... Be8 {[%clk 0:02:03.8]} 15.
Rhd1 {[%clk 0:01:36.2]} 15... f6 {[%clk 0:01:58.4]} 16. Bxc6 {[%clk 0:01:28]}
16... Bxc6 {[%clk 0:01:56]} 17. Rxd8 {[%clk 0:01:28.2]} 17... Rxd8 {[%clk
0:01:55.8]} 18. Rxd8 {[%clk 0:01:29.1]} 18... Kxd8 {[%clk 0:01:56.7]} 19. Nd4
{[%clk 0:01:27.1]} 19... Kd7 {[%clk 0:01:18]} 20. Nxc6 {[%clk 0:01:23.1]} 20...
Kxc6 {[%clk 0:01:18.9]} 21. Kd3 {[%clk 0:01:23.8]} 21... e5 {[%clk 0:01:03.5]}
22. c4 {[%clk 0:01:20.2]} 22... a5 {[%clk 0:00:58.8]} 23. b3 {[%clk 0:01:19.2]}
23... f5 {[%clk 0:00:56]} 24. a3 {[%clk 0:01:17.7]} 24... g5 {[%clk 0:00:40.8]}
25. g4 {[%clk 0:00:58.4]} 25... fxg4 {[%clk 0:00:13.7]} 26. Ke4 {[%clk
0:00:58.7]} 26... Kc5 {[%clk 0:00:14.3]} 27. Kxe5 {[%clk 0:00:35]} 27... a4
{[%clk 0:00:14.8]} 28. bxa4 {[%clk 0:00:35.9]} 28... Kxc4 {[%clk 0:00:15.7]} 29.
Kf5 {[%clk 0:00:36.4]} 29... Kb3 {[%clk 0:00:08.8]} 30. Kxg5 {[%clk 0:00:05.7]}
30... Kxa3 {[%clk 0:00:06.3]} 31. Kxg4 {[%clk 0:00:05]} 31... Kxa4 {[%clk
0:00:05.6]} 32. f4 {[%clk 0:00:05.7]} 32... b5 {[%clk 0:00:05.8]} 33. f5 {[%clk
0:00:06.1]} 33... b4 {[%clk 0:00:06.7]} 34. f6 {[%clk 0:00:06.7]} 34... b3
{[%clk 0:00:07.2]} 35. f7 {[%clk 0:00:07.3]} 35... b2 {[%clk 0:00:08]} 36. f8=Q
{[%clk 0:00:08]} 36... b1=Q {[%clk 0:00:08.9]} 37. Qa8+ {[%clk 0:00:08.6]} 37...
Kb3 {[%clk 0:00:08.8]} 38. Qb7+ {[%clk 0:00:09.1]} 38... Kc2 {[%clk 0:00:09.7]}
39. Qxh7+ {[%clk 0:00:09.1]} 39... Kb2 {[%clk 0:00:09.1]} 40. Qxb1+ {[%clk
0:00:10]} 40... Kxb1 {[%clk 0:00:09.6]} 41. h4 {[%clk 0:00:10.5]} 1-0

[Event "Early-Titled-Tuesday-Blitz-June-18-2024"]
[Site "Chess.com"]
[Date "2024.06.18"]
[Round "10"]
[White "HelenaWalker2912"]
[Black "Arteler"]
[Result "1/2-1/2"]
[WhiteElo "2395"]
[BlackElo "2212"]
[TimeControl "180+1"]
[EndTime "9:57:37 PDT"]
[Termination "Game drawn by repetition"]

1. d4 {[%clk 0:03:00.9]} 1... Nf6 {[%clk 0:02:57.9]} 2. c4 {[%clk 0:03:01.1]}
2... g6 {[%clk 0:02:57.5]} 3. Nc3 {[%clk 0:03:01.7]} 3... Bg7 {[%clk 0:02:58.1]}
4. e4 {[%clk 0:03:02.2]} 4... d6 {[%clk 0:02:58.4]} 5. h3 {[%clk 0:03:02.8]}
5... O-O {[%clk 0:02:58.9]} 6. Be3 {[%clk 0:03:03.4]} 6... Nc6 {[%clk
0:02:58.7]} 7. Nge2 {[%clk 0:03:00.9]} 7... e5 {[%clk 0:02:59.2]} 8. d5 {[%clk
0:03:01.4]} 8... Ne7 {[%clk 0:02:59.5]} 9. g4 {[%clk 0:02:59.1]} 9... Ne8 {[%clk
0:02:55.7]} 10. Ng3 {[%clk 0:02:59.1]} 10... f5 {[%clk 0:02:46.2]} 11. gxf5
{[%clk 0:02:58.7]} 11... gxf5 {[%clk 0:02:45.4]} 12. exf5 {[%clk 0:02:59.6]}
12... Nxf5 {[%clk 0:02:45.2]} 13. Nxf5 {[%clk 0:02:59.9]} 13... Bxf5 {[%clk
0:02:45.3]} 14. Bd3 {[%clk 0:03:00.5]} 14... e4 {[%clk 0:02:24.3]} 15. Be2
{[%clk 0:02:34.5]} 15... Qf6 {[%clk 0:02:02.9]} 16. Qd2 {[%clk 0:02:25.2]} 16...
Kh8 {[%clk 0:02:00.8]} 17. O-O-O {[%clk 0:02:21.9]} 17... a5 {[%clk 0:01:50.4]}
18. Rhg1 {[%clk 0:02:17.5]} 18... a4 {[%clk 0:01:48.9]} 19. a3 {[%clk
0:01:24.3]} 19... Bg6 {[%clk 0:01:25.9]} 20. h4 {[%clk 0:00:47.6]} 20... Qf7
{[%clk 0:00:55.3]} 21. Rg2 {[%clk 0:00:21.4]} 21... Nf6 {[%clk 0:00:53.7]} 22.
Rdg1 {[%clk 0:00:22]} 22... Rg8 {[%clk 0:00:51.9]} 23. Bd4 {[%clk 0:00:20.7]}
23... Raf8 {[%clk 0:00:31.3]} 24. h5 {[%clk 0:00:12.7]} 24... Bxh5 {[%clk
0:00:21.4]} 25. Bxh5 {[%clk 0:00:05.1]} 25... Qxh5 {[%clk 0:00:21.5]} 26. Qe3
{[%clk 0:00:01.9]} 26... Qf7 {[%clk 0:00:07.7]} 27. Nxe4 {[%clk 0:00:01.5]}
27... Nh5 {[%clk 0:00:06.7]} 28. Bxg7+ {[%clk 0:00:01.6]} 28... Rxg7 {[%clk
0:00:07.4]} 29. Rxg7 {[%clk 0:00:01.5]} 29... Nxg7 {[%clk 0:00:08.1]} 30. Ng5
{[%clk 0:00:02.1]} 30... Qg6 {[%clk 0:00:07.5]} 31. Nf3 {[%clk 0:00:01.7]} 31...
Qf7 {[%clk 0:00:07]} 32. Nd4 {[%clk 0:00:01.8]} 32... Nf5 {[%clk 0:00:07.1]} 33.
Nxf5 {[%clk 0:00:02]} 33... Qxf5 {[%clk 0:00:08]} 34. Qd4+ {[%clk 0:00:02.3]}
34... Qf6 {[%clk 0:00:08.7]} 35. Qxf6+ {[%clk 0:00:02.5]} 35... Rxf6 {[%clk
0:00:09.6]} 36. Rg2 {[%clk 0:00:03.2]} 36... Rf3 {[%clk 0:00:09.9]} 37. Kc2
{[%clk 0:00:03.4]} 37... Rb3 {[%clk 0:00:09.7]} 38. Rg4 {[%clk 0:00:03]} 38...
Rf3 {[%clk 0:00:09.6]} 39. Rg2 {[%clk 0:00:03.3]} 39... Rb3 {[%clk 0:00:09.8]}
40. Rh2 {[%clk 0:00:02.8]} 40... Rf3 {[%clk 0:00:10]} 41. Rg2 {[%clk 0:00:03.1]}
1/2-1/2

[Event "Early-Titled-Tuesday-Blitz-June-18-2024"]
[Site "Chess.com"]
[Date "2024.06.18"]
[Round "10"]
[White "PapaieDudu"]
[Black "Shuvalov"]
[Result "0-1"]
[WhiteElo "2345"]
[BlackElo "2586"]
[TimeControl "180+1"]
[EndTime "9:57:40 PDT"]
[Termination "Shuvalov won by resignation"]

1. Nf3 {[%clk 0:03:00.9]} 1... Nf6 {[%clk 0:02:59.5]} 2. d4 {[%clk 0:03:01.3]}
2... g6 {[%clk 0:02:59.6]} 3. c4 {[%clk 0:03:02.1]} 3... Bg7 {[%clk 0:02:59.9]}
4. Nc3 {[%clk 0:03:02.9]} 4... d5 {[%clk 0:03:00.2]} 5. g3 {[%clk 0:03:03.7]}
5... c6 {[%clk 0:02:58]} 6. Bg2 {[%clk 0:03:04.5]} 6... dxc4 {[%clk 0:02:56]} 7.
O-O {[%clk 0:03:05.4]} 7... O-O {[%clk 0:02:55.7]} 8. a4 {[%clk 0:03:06.3]} 8...
a5 {[%clk 0:02:49.1]} 9. Ne5 {[%clk 0:03:06.5]} 9... Ng4 {[%clk 0:02:48.8]} 10.
Nxc4 {[%clk 0:03:02]} 10... Qxd4 {[%clk 0:02:46.3]} 11. Qb3 {[%clk 0:02:39]}
11... Be6 {[%clk 0:02:24]} 12. Qxb7 {[%clk 0:02:38.5]} 12... Ra7 {[%clk
0:02:23.7]} 13. Qb3 {[%clk 0:01:08.4]} 13... Qxc4 {[%clk 0:02:19]} 14. Qc2
{[%clk 0:01:08.8]} 14... Rd7 {[%clk 0:02:10.1]} 15. Bf4 {[%clk 0:01:03.5]} 15...
Na6 {[%clk 0:02:03.1]} 16. Ra3 {[%clk 0:01:00.7]} 16... Nb4 {[%clk 0:02:01.4]}
17. Qc1 {[%clk 0:00:58]} 17... Rfd8 {[%clk 0:01:53]} 18. h3 {[%clk 0:00:53]}
18... Nf6 {[%clk 0:01:52.6]} 19. b3 {[%clk 0:00:51.3]} 19... Qa6 {[%clk
0:01:50]} 20. Ra1 {[%clk 0:00:45.5]} 20... Bd5 {[%clk 0:01:43]} 21. e4 {[%clk
0:00:43.8]} 21... Bxb3 {[%clk 0:01:37.5]} 22. Rb1 {[%clk 0:00:34.5]} 22... Bc4
{[%clk 0:01:35.5]} 23. Rd1 {[%clk 0:00:30.9]} 23... Nd3 {[%clk 0:01:34]} 24. Qe3
{[%clk 0:00:29.5]} 24... Nxf4 {[%clk 0:01:31.5]} 25. gxf4 {[%clk 0:00:28.9]}
25... Nh5 {[%clk 0:01:27.6]} 26. e5 {[%clk 0:00:27.6]} 26... Rxd1+ {[%clk
0:01:26.6]} 27. Nxd1 {[%clk 0:00:26.1]} 27... Bh6 {[%clk 0:01:24.5]} 28. Qc5
{[%clk 0:00:20.8]} 28... Bd5 {[%clk 0:01:20.3]} 29. Bf1 {[%clk 0:00:20.1]} 29...
Qc8 {[%clk 0:01:15.9]} 30. Qxe7 {[%clk 0:00:12.1]} 30... Qd7 {[%clk 0:01:10]}
31. Qc5 {[%clk 0:00:10.5]} 31... Bxf4 {[%clk 0:01:08.1]} 32. Qxa5 {[%clk
0:00:02]} 32... Bxe5 {[%clk 0:01:02.1]} 33. Ne3 {[%clk 0:00:01.7]} 33... Bc7
{[%clk 0:01:00.1]} 34. Qb4 {[%clk 0:00:01.5]} 34... Nf4 {[%clk 0:00:56.7]} 35.
Rd1 {[%clk 0:00:01.5]} 35... Qd6 {[%clk 0:00:51.3]} 36. Qxd6 {[%clk 0:00:01]}
36... Rxd6 {[%clk 0:00:48]} 37. a5 {[%clk 0:00:01.4]} 37... Bxa5 {[%clk
0:00:47.5]} 38. Nc4 {[%clk 0:00:01.8]} 38... Bc7 {[%clk 0:00:39.6]} 39. Nxd6
{[%clk 0:00:01.6]} 39... Bxd6 {[%clk 0:00:40.5]} 40. f3 {[%clk 0:00:02]} 40...
Bc5+ {[%clk 0:00:40.2]} 41. Kh2 {[%clk 0:00:02]} 41... Kg7 {[%clk 0:00:40]} 42.
Rc1 {[%clk 0:00:02.1]} 42... Bd6 {[%clk 0:00:39.1]} 43. Kg1 {[%clk 0:00:02.3]}
43... Kf6 {[%clk 0:00:37.5]} 44. Kf2 {[%clk 0:00:02.6]} 44... Ke5 {[%clk
0:00:36.3]} 45. Re1+ {[%clk 0:00:02.7]} 45... Kd4 {[%clk 0:00:35.4]} 46. Rd1+
{[%clk 0:00:03.5]} 46... Kc3 {[%clk 0:00:35.1]} 47. Ra1 {[%clk 0:00:02.6]} 47...
Kd2 {[%clk 0:00:33.7]} 48. Ra2+ {[%clk 0:00:02.9]} 48... Bxa2 {[%clk 0:00:33.5]}
0-1

[Event "Early-Titled-Tuesday-Blitz-June-18-2024"]
[Site "Chess.com"]
[Date "2024.06.18"]
[Round "10"]
[White "Sprinc1"]
[Black "CFalcons8"]
[Result "1-0"]
[WhiteElo "2299"]
[BlackElo "2438"]
[TimeControl "180+1"]
[EndTime "9:57:42 PDT"]
[Termination "Sprinc1 won by resignation"]

1. d4 {[%clk 0:03:00.9]} 1... Nf6 {[%clk 0:02:58.9]} 2. Nf3 {[%clk 0:02:57.8]}
2... e6 {[%clk 0:02:57.8]} 3. g3 {[%clk 0:02:58]} 3... b6 {[%clk 0:02:52.8]} 4.
Bg2 {[%clk 0:02:57.3]} 4... Bb7 {[%clk 0:02:53.7]} 5. O-O {[%clk 0:02:55.5]}
5... Be7 {[%clk 0:02:54.3]} 6. c4 {[%clk 0:02:55.6]} 6... O-O {[%clk 0:02:55.2]}
7. Nc3 {[%clk 0:02:55.9]} 7... Ne4 {[%clk 0:02:54.8]} 8. Bd2 {[%clk 0:02:55.9]}
8... f5 {[%clk 0:02:51.8]} 9. Ne5 {[%clk 0:02:55.2]} 9... Nxc3 {[%clk 0:02:49]}
10. Bxc3 {[%clk 0:02:52.9]} 10... Bxg2 {[%clk 0:02:49.9]} 11. Kxg2 {[%clk
0:02:52.7]} 11... d6 {[%clk 0:02:50.8]} 12. Nf3 {[%clk 0:02:50.5]} 12... Bf6
{[%clk 0:02:49]} 13. Qd3 {[%clk 0:02:48.7]} 13... Nd7 {[%clk 0:02:47.3]} 14. e4
{[%clk 0:02:42]} 14... g6 {[%clk 0:02:37]} 15. Rfe1 {[%clk 0:02:32.7]} 15... Bg7
{[%clk 0:02:28.1]} 16. exf5 {[%clk 0:02:26]} 16... exf5 {[%clk 0:02:29]} 17. Re6
{[%clk 0:02:13]} 17... Re8 {[%clk 0:02:24.6]} 18. Rae1 {[%clk 0:02:11.8]} 18...
Rxe6 {[%clk 0:02:19.2]} 19. Rxe6 {[%clk 0:02:12.7]} 19... Nf8 {[%clk 0:02:14.1]}
20. Re2 {[%clk 0:02:04.3]} 20... Qd7 {[%clk 0:02:14.2]} 21. d5 {[%clk
0:02:00.3]} 21... Bxc3 {[%clk 0:01:59.4]} 22. Qxc3 {[%clk 0:01:38.8]} 22... Re8
{[%clk 0:01:58.5]} 23. Rxe8 {[%clk 0:01:38.8]} 23... Qxe8 {[%clk 0:01:59.4]} 24.
Nd4 {[%clk 0:01:38.9]} 24... Qe4+ {[%clk 0:01:57.6]} 25. f3 {[%clk 0:01:38.9]}
25... Qe5 {[%clk 0:01:55.2]} 26. Qd3 {[%clk 0:01:32.2]} 26... Nd7 {[%clk
0:01:53.8]} 27. Qd2 {[%clk 0:01:25.8]} 27... Qf6 {[%clk 0:01:31.8]} 28. Nb5
{[%clk 0:01:18.3]} 28... Ne5 {[%clk 0:01:29.3]} 29. b3 {[%clk 0:01:05.5]} 29...
g5 {[%clk 0:01:16.3]} 30. Nxc7 {[%clk 0:01:02.5]} 30... g4 {[%clk 0:01:11.6]}
31. f4 {[%clk 0:00:52.1]} 31... Nf3 {[%clk 0:01:09]} 32. Qe2 {[%clk 0:00:50.7]}
32... Qf7 {[%clk 0:00:43.5]} 33. Qe8+ {[%clk 0:00:39.7]} 33... Kg7 {[%clk
0:00:38.6]} 34. Qxf7+ {[%clk 0:00:19]} 34... Kxf7 {[%clk 0:00:39.5]} 35. Nb5
{[%clk 0:00:19.5]} 35... Ke7 {[%clk 0:00:39]} 36. Nxa7 {[%clk 0:00:19.6]} 36...
Kd7 {[%clk 0:00:39.9]} 37. Nb5 {[%clk 0:00:19.6]} 37... h6 {[%clk 0:00:39.2]}
38. h3 {[%clk 0:00:19.3]} 38... Ne1+ {[%clk 0:00:37.5]} 39. Kf1 {[%clk
0:00:19.3]} 39... Nd3 {[%clk 0:00:35.3]} 40. h4 {[%clk 0:00:18.4]} 40... Nc1
{[%clk 0:00:33.3]} 41. Nd4 {[%clk 0:00:18.7]} 41... Nxa2 {[%clk 0:00:30.2]} 42.
h5 {[%clk 0:00:17.6]} 42... Nc1 {[%clk 0:00:28]} 43. Nxf5 {[%clk 0:00:15.4]}
43... Nxb3 {[%clk 0:00:28]} 44. Nxh6 {[%clk 0:00:15.1]} 44... Nd2+ {[%clk
0:00:28.2]} 45. Ke2 {[%clk 0:00:15.5]} 45... Nxc4 {[%clk 0:00:29.1]} 46. Nxg4
{[%clk 0:00:15.7]} 46... Ke7 {[%clk 0:00:28.6]} 47. Ne3 {[%clk 0:00:15.2]} 47...
Na5 {[%clk 0:00:24.9]} 48. Nf5+ {[%clk 0:00:12.5]} 48... Kf6 {[%clk 0:00:21.3]}
49. Nxd6 {[%clk 0:00:12.7]} 1-0

[Event "Early-Titled-Tuesday-Blitz-June-18-2024"]
[Site "Chess.com"]
[Date "2024.06.18"]
[Round "10"]
[White "dealshark"]
[Black "cycygogne"]
[Result "0-1"]
[WhiteElo "2435"]
[BlackElo "2240"]
[TimeControl "180+1"]
[EndTime "9:57:45 PDT"]
[Termination "cycygogne won by checkmate"]

1. e4 {[%clk 0:03:00.9]} 1... d5 {[%clk 0:02:59.4]} 2. exd5 {[%clk 0:03:00.4]}
2... Qxd5 {[%clk 0:03:00.3]} 3. Nc3 {[%clk 0:03:00.3]} 3... Qd6 {[%clk
0:03:00.7]} 4. d4 {[%clk 0:02:59.6]} 4... Nf6 {[%clk 0:03:00.8]} 5. Nf3 {[%clk
0:02:59.7]} 5... Bg4 {[%clk 0:03:01]} 6. h3 {[%clk 0:02:56.1]} 6... Bh5 {[%clk
0:03:00.6]} 7. g4 {[%clk 0:02:54.8]} 7... Bg6 {[%clk 0:03:00.4]} 8. Ne5 {[%clk
0:02:51.2]} 8... c5 {[%clk 0:02:43.6]} 9. Bb5+ {[%clk 0:02:50.4]} 9... Nc6
{[%clk 0:02:43.5]} 10. Nxg6 {[%clk 0:02:26.8]} 10... hxg6 {[%clk 0:02:41.8]} 11.
d5 {[%clk 0:02:22.2]} 11... O-O-O {[%clk 0:02:34.9]} 12. dxc6 {[%clk 0:02:19.9]}
12... Qc7 {[%clk 0:02:08.6]} 13. cxb7+ {[%clk 0:02:15.8]} 13... Qxb7 {[%clk
0:01:57.3]} 14. Qe2 {[%clk 0:01:29.6]} 14... Qxh1+ {[%clk 0:01:56.1]} 15. Qf1
{[%clk 0:01:29.9]} 15... Qxf1+ {[%clk 0:01:42.5]} 16. Kxf1 {[%clk 0:01:30.8]}
16... e5 {[%clk 0:01:36.2]} 17. Ba6+ {[%clk 0:01:28.4]} 17... Kb8 {[%clk
0:01:30.7]} 18. Bg5 {[%clk 0:01:25.5]} 18... Rxh3 {[%clk 0:01:22.8]} 19. Kg2
{[%clk 0:01:24.8]} 19... Rh8 {[%clk 0:01:22.1]} 20. Re1 {[%clk 0:01:21.4]} 20...
Bd6 {[%clk 0:01:19.4]} 21. Nb5 {[%clk 0:01:19.1]} 21... Rhe8 {[%clk 0:01:16.7]}
22. Re3 {[%clk 0:01:17.3]} 22... Ka8 {[%clk 0:01:08.6]} 23. Rb3 {[%clk
0:00:58.4]} 23... Re6 {[%clk 0:00:41.2]} 24. c4 {[%clk 0:00:49.4]} 24... Bb8
{[%clk 0:00:35.7]} 25. Nd6 {[%clk 0:00:20.6]} 25... Bxd6 {[%clk 0:00:33.9]} 26.
Bb7+ {[%clk 0:00:21.1]} 26... Kb8 {[%clk 0:00:34.4]} 27. Bd5+ {[%clk 0:00:21.6]}
27... Kc7 {[%clk 0:00:34.7]} 28. Bxe6 {[%clk 0:00:22.2]} 28... fxe6 {[%clk
0:00:34.1]} 29. Ra3 {[%clk 0:00:20.6]} 29... Ra8 {[%clk 0:00:31.7]} 30. Kf3
{[%clk 0:00:18.7]} 30... a5 {[%clk 0:00:31.8]} 31. Ke3 {[%clk 0:00:17.6]} 31...
Kc6 {[%clk 0:00:32.2]} 32. Rb3 {[%clk 0:00:17.2]} 32... Ra7 {[%clk 0:00:30.6]}
33. Rd3 {[%clk 0:00:15]} 33... Rb7 {[%clk 0:00:30.3]} 34. b3 {[%clk 0:00:14.9]}
34... a4 {[%clk 0:00:28.9]} 35. bxa4 {[%clk 0:00:14.1]} 35... Ra7 {[%clk
0:00:29.4]} 36. Ra3 {[%clk 0:00:13.5]} 36... Bc7 {[%clk 0:00:29.7]} 37. f3
{[%clk 0:00:11]} 37... Ba5 {[%clk 0:00:29.7]} 38. Bh4 {[%clk 0:00:10.8]} 38...
Bb4 {[%clk 0:00:29.7]} 39. Rd3 {[%clk 0:00:10.9]} 39... Rxa4 {[%clk 0:00:29.6]}
40. Rd8 {[%clk 0:00:11.1]} 40... Rxa2 {[%clk 0:00:29.2]} 41. Rc8+ {[%clk
0:00:11.7]} 41... Kb7 {[%clk 0:00:28.5]} 42. Rd8 {[%clk 0:00:08.5]} 42... Ra3+
{[%clk 0:00:28.6]} 43. Kf2 {[%clk 0:00:08]} 43... Rc3 {[%clk 0:00:28.6]} 44. g5
{[%clk 0:00:06]} 44... Nh5 {[%clk 0:00:27.7]} 45. Re8 {[%clk 0:00:03.3]} 45...
Rxc4 {[%clk 0:00:27.3]} 46. Rxe6 {[%clk 0:00:03.9]} 46... Rxh4 {[%clk
0:00:27.1]} 47. Rxg6 {[%clk 0:00:04.1]} 47... Rd4 {[%clk 0:00:26.4]} 48. Kg2
{[%clk 0:00:03.8]} 48... c4 {[%clk 0:00:26.6]} 49. Kh3 {[%clk 0:00:03.9]} 49...
c3 {[%clk 0:00:26.8]} 50. Re6 {[%clk 0:00:04.2]} 50... c2 {[%clk 0:00:27]} 51.
f4 {[%clk 0:00:04.7]} 51... c1=Q {[%clk 0:00:26.9]} 52. f5 {[%clk 0:00:05.2]}
52... Qh1# {[%clk 0:00:26.7]} 0-1